bitfinex-derivatives/quotes_SOLF0:USTF0_20241120
["timestamp","ask_amount","ask_price","bid_price","bid_amount"]
[1732091389008,6.5066324,237.97,237.92,2.0993]
[1732091389612,6.5066324,237.93,237.9,2.0995]
[1732091389812,2.1,237.92,237.84,6.5066324]
[1732091390311,2.1,237.92,237.82,1.2182]
[1732091390516,2.1,237.92,237.84,6.5066324]
[1732091390911,6.5066324,237.91,237.8,2.43669875]
[1732091391120,6.5066324,237.89,237.8,6.5066324]
[1732091391513,6.5066324,237.87,237.7,2.58503888]
[1732091391819,2.1,237.86,237.78,6.5066324]
[1732091392113,2.1,237.86,237.8,6.5066324]
[1732091393318,2.1,237.86,237.82,2.1002]
[1732091394008,2.1,237.86,237.83,2.1001]
[1732091394212,2.1,237.86,237.8,6.5066324]
[1732091394608,2.1,237.86,237.83,2.1001]
[1732091394818,2.1,237.85,237.82,6.5066324]
[1732091395119,2.1,237.84,237.82,6.5066324]
[1732091395319,1.2214,237.91,237.85,2.0999]
[1732091395519,2.1,237.9,237.85,2.0999]
[1732091395718,2.1,237.9,237.82,6.5066324]
[1732091396219,2.1,237.9,237.84,6.5066324]
[1732091396420,2.4568,237.92,237.87,2.0997]
[1732091396719,2.1,237.91,237.87,2.0997]
[1732091398516,2.4568,237.92,237.84,6.5066324]
[1732091398722,2.1,237.91,237.88,2.0996]
[1732091399120,2.4568,237.92,237.87,2.0997]
[1732091399318,2.1,237.91,237.84,6.5066324]
[1732091399920,2.1,237.91,237.86,2.0997]
[1732091400223,8.6066324,237.91,237.86,2.0997]
[1732091400516,8.6066324,237.91,237.85,2.0999]
[1732091400722,6.5066324,237.89,237.8,6.5066324]
[1732091401221,2.1,237.91,237.85,2.0999]
[1732091401424,8.6066324,237.91,237.85,2.0999]
[1732091401917,2.4568,237.92,237.75,2.98907]
[1732091402120,2.1,237.91,237.86,6.5066324]
[1732091402818,2.1,237.91,237.84,6.5066324]
[1732091403019,2.4568,237.92,237.84,6.5066324]
[1732091403324,2.1,237.91,237.84,6.5066324]
[1732091404316,2.1,237.91,237.86,6.5066324]
[1732091404920,2.1,237.91,237.87,2.0997]
[1732091405126,2.1,237.91,237.86,6.5066324]
[1732091406227,2.1,237.91,237.89,2.0996]
[1732091407625,2.1,237.91,237.86,2.0998]
[1732091407929,2.1,237.91,237.84,6.5066324]
[1732091408129,232.86491434,238.1,237.87,6.5066324]
[1732091408326,2.1,237.98,237.89,6.5066324]
[1732091408825,2.1,237.98,237.82,2.1]
[1732091408826,2.1,237.98,237.91,6.5066324]
[1732091409031,2.4898,238.05,237.91,6.5066324]
[1732091409332,2.1,237.98,237.95,2.099]
[1732091409825,2.1,237.98,237.91,6.5066324]
[1732091410827,30.24,237.99,237.85,2.99043428]
[1732091411127,2.1,237.98,237.91,6.5066324]
[1732091412330,2.1,237.98,237.93,6.5066324]
[1732091412735,6.5066324,238.02,237.93,6.5066324]
[1732091413033,2.08,238.01,237.93,6.5066324]
[1732091414834,8.5866324,238.01,237.93,6.5066324]
[1732091415138,8.5866324,238.01,237.92,6.5066324]
[1732091415336,2.08,238.0,237.92,6.5066324]
[1732091415541,2.08,237.99,237.94,6.5066324]
[1732091417839,2.08,237.99,237.98,2.0988]
[1732091419035,2.3997,238.08,237.98,6.5066324]
[1732091419242,2.08,238.09,238.07,2.098]
[1732091420236,8.5866324,238.09,238.02,2.0983]
[1732091420434,6.5066324,238.05,237.88,1.4377]
[1732091420639,6.5066324,238.03,237.96,6.5066324]
[1732091420841,2.08,238.02,237.96,6.5066324]
[1732091421336,2.08,238.02,237.88,1.4377]
[1732091421539,2.08,238.02,237.94,6.5066324]
[1732091421838,2.08,238.02,237.96,6.5066324]
[1732091422046,2.08,238.02,238.0,2.0986]
[1732091423345,2.08,238.02,238.01,2.0985]
[1732091424844,33.5612438,238.14,238.05,2.0981]
[1732091425149,6.5066324,238.11,238.05,2.0981]
[1732091425548,2.08,238.13,238.05,2.0981]
[1732091425743,6.5066324,238.1,238.05,2.0981]
[1732091425941,6.5066324,238.06,237.91,2.08]
[1732091426248,2.08,238.05,237.97,6.5066324]
[1732091426449,2.08,238.05,238.0,2.0986]
[1732091429850,6.5066324,238.02,237.97,2.0988]
[1732091430048,6.5066324,238.0,237.88,1.4377]
[1732091430248,2.08,237.99,237.91,6.5066324]
[1732091430449,6.5066324,237.98,237.93,2.0992]
[1732091430953,6.5066324,237.98,237.89,6.5066324]
[1732091431753,6.5066324,237.98,237.88,1.2887]
[1732091431951,6.5066324,237.98,237.86,6.5066324]
[1732091431952,6.5066324,237.94,237.86,6.5066324]
[1732091432165,2.08,237.93,237.9,2.0994]
[1732091432355,2.08,237.93,237.79,1.2001]
[1732091432557,2.08,237.93,237.85,6.5066324]
[1732091432759,2.08,237.93,237.87,6.5066324]
[1732091432952,2.08,237.93,237.91,6.5066324]
[1732091433560,2.08,237.93,237.89,6.5066324]
[1732091433758,2.08,237.93,237.91,2.0994]
[1732091433949,2.08,237.93,237.89,6.5066324]
[1732091434958,8.5866324,237.93,237.85,6.5066324]
[1732091435353,2.4682,237.96,237.72,2.98396164]
[1732091435554,2.08,237.95,237.89,6.5066324]
[1732091436258,2.08,237.95,237.9,2.0994]
[1732091436458,2.08,237.95,237.89,6.5066324]
[1732091436855,6.5066324,237.94,237.83,2.1]
[1732091437056,2.08,237.93,237.83,6.5066324]
[1732091437256,2.08,237.93,237.85,6.5066324]
[1732091437459,2.08,237.93,237.88,2.0996]
[1732091437953,2.08,237.93,237.86,6.5066324]
[1732091438157,2.08,237.93,237.86,8.6063324]
[1732091438558,2.08,237.93,237.86,6.5066324]
[1732091438758,2.08,237.93,237.87,2.0997]
[1732091438966,6.5066324,237.88,237.71,5.41590476]
[1732091439151,6.5066324,237.88,237.7,1.4221]
[1732091439152,2.08,237.87,237.79,8.6070324]
[1732091439356,6.5066324,237.86,237.73,5.41590476]
[1732091439561,6.5066324,237.86,237.76,6.5066324]
[1732091440364,6.5066324,237.84,237.77,2.1006]
[1732091440860,6.5066324,237.82,237.73,6.5066324]
[1732091441069,6.5066324,237.76,237.65,5.41854789]
[1732091441264,6.5066324,237.76,237.59,1.2154]
[1732091441265,6.5066324,237.72,237.64,2.1017]
[1732091441461,6.5066324,237.72,237.63,6.5066324]
[1732091441668,6.5066324,237.7,237.6,2.98773426]
[1732091441862,6.5066324,237.68,237.58,2.98773426]
[1732091442063,6.5066324,237.68,237.58,2.1022]
[1732091442261,6.5066324,237.66,237.55,2.98773426]
[1732091442565,6.5066324,237.66,237.57,6.5066324]
[1732091442768,6.5066324,237.66,237.57,8.6089324]
[1732091443661,2.12,237.67,237.57,6.5066324]
[1732091443964,6.5066324,237.72,237.65,6.5066324]
[1732091444161,2.12,237.71,237.65,6.5066324]
[1732091444363,2.12,237.7,237.65,6.5066324]
[1732091444559,30.26,237.73,237.65,6.5066324]
[1732091444767,2.12,237.72,237.62,10.1907633]
[1732091445366,2.12,237.72,237.65,2.1016]
[1732091445569,2.12,237.71,237.65,10.1907633]
[1732091446069,2.4391,237.75,237.65,10.1907633]
[1732091446264,2.12,237.74,237.68,10.1907633]
[1732091446469,2.12,237.73,237.68,10.1907633]
[1732091446665,3.7176,237.82,237.68,10.1907633]
[1732091446666,2.12,237.74,237.68,10.1907633]
[1732091447270,2.12,237.74,237.72,2.1011]
[1732091449970,3.7176,237.82,237.61,2.2702]
[1732091449971,3.7176,237.82,237.71,10.1907633]
[1732091450279,3.7176,237.82,237.74,10.1907633]
[1732091450280,2.12,237.81,237.74,10.1907633]
[1732091450576,2.12,237.81,237.75,2.1007]
[1732091451072,2.12,237.81,237.71,10.1907633]
[1732091451474,2.12,237.81,237.77,2.1006]
[1732091451668,2.12,237.81,237.74,10.1907633]
[1732091451976,2.12,237.8,237.74,10.1907633]
[1732091452374,2.12,237.8,237.78,2.1005]
[1732091452970,2.12,237.8,237.71,10.1907633]
[1732091453172,2.12,237.8,237.75,2.1008]
[1732091454078,2.12,237.79,237.75,2.1008]
[1732091456175,2.12,237.79,237.76,2.1007]
[1732091457178,2.12,237.79,237.66,10.1907633]
[1732091457380,2.12,237.79,237.72,2.1011]
[1732091458175,2.12,237.79,237.66,10.1907633]
[1732091458971,2.12,237.79,237.62,1.1852]
[1732091459177,2.12,237.79,237.65,10.1907633]
[1732091460379,2.12,237.79,237.74,2.1009]
[1732091462981,2.12,237.79,237.68,10.1907633]
[1732091464390,2.12,237.79,237.72,2.101]
[1732091464685,2.12,237.79,237.68,10.1907633]
[1732091465775,2.12,237.79,237.71,2.1011]
[1732091466084,12.30682196,237.78,237.62,11.3759633]
[1732091466377,12.30682196,237.78,237.66,2.1015]
[1732091466378,10.1907633,237.75,237.66,2.1015]
[1732091466579,2.12,237.74,237.59,10.1907633]
[1732091467083,10.1907633,237.72,237.56,10.1907633]
[1732091467484,10.1907633,237.72,237.62,2.1019]
[1732091467887,10.1907633,237.72,237.56,10.1907633]
[1732091468183,10.1907633,237.72,237.62,2.1019]
[1732091469077,12.2918633,237.72,237.63,2.1018]
[1732091470583,12.2918633,237.72,237.64,2.1018]
[1732091471180,12.2918633,237.72,237.56,10.1907633]
[1732091471485,12.2918633,237.72,237.65,2.1017]
[1732091471682,2.4717,237.73,237.62,10.1907633]
[1732091471878,2.1,237.72,237.65,10.1907633]
[1732091472084,2.1,237.72,237.71,2.1011]
[1732091473482,1.0,237.77,237.65,10.1907633]
[1732091473690,2.1,237.76,237.75,2.1008]
[1732091473885,2.1,237.76,237.68,10.1907633]
[1732091474888,2.1,237.76,237.74,2.1008]
[1732091476291,2.1,237.79,237.74,10.1907633]
[1732091476889,2.1,237.79,237.75,2.1007]
[1732091477083,2.1,237.79,237.74,10.1907633]
[1732091477280,2.1,237.8,237.74,10.1907633]
[1732091477481,2.1,237.81,237.77,10.1907633]
[1732091477682,3.6708,237.88,237.77,10.1907633]
[1732091477883,2.1,237.87,237.83,2.1]
[1732091478090,2.1,237.86,237.77,10.1907633]
[1732091478291,30.26,237.93,237.72,12.2907633]
[1732091478292,2.1,237.85,237.8,10.1907633]
[1732091478787,2.1,237.85,237.84,2.1]
[1732091481188,2.1,237.85,237.82,2.1001]
[1732091481392,2.1,237.85,237.72,13.16601121]
[1732091481587,2.1,237.84,237.69,10.1907633]
[1732091481788,4.586,237.84,237.73,2.1009]
[1732091481994,13.6767633,237.84,237.69,10.1907633]
[1732091482191,2.1002,237.82,237.66,11.3810633]
[1732091482391,2.1002,237.82,237.71,2.1011]
[1732091482895,15.7768633,237.84,237.73,2.1009]
[1732091483399,13.6767633,237.84,237.69,10.1907633]
[1732091484389,2.1,237.83,237.75,10.1907633]
[1732091485689,2.1,237.83,237.76,2.1006]
[1732091485894,2.1,237.83,237.72,10.1907633]
[1732091487196,2.1002,237.82,237.72,2.101]
[1732091487795,2.1003,237.81,237.7,2.1012]
[1732091488791,2.1003,237.81,237.71,2.1011]
[1732091489199,2.1003,237.81,237.69,2.1013]
[1732091489396,12.2910633,237.81,237.65,10.1907633]
[1732091489602,12.2910633,237.81,237.61,2.43403202]
[1732091489797,12.2910633,237.81,237.64,10.1907633]
[1732091490196,12.2910633,237.81,237.72,2.101]
[1732091490498,10.1907633,237.81,237.72,2.101]
[1732091491895,10.1907633,237.81,237.64,10.1907633]
[1732091492101,10.1907633,237.81,237.74,2.1009]
[1732091492602,10.1907633,237.81,237.75,2.1008]
[1732091495503,10.1907633,237.81,237.76,2.1007]
[1732091497110,10.1907633,237.81,237.77,2.1006]
[1732091500809,3.486,237.84,237.7,10.1907633]
[1732091501103,3.486,237.84,237.73,10.1907633]
[1732091501309,2.1,237.83,237.79,2.1004]
[1732091501703,2.1,237.83,237.7,10.1907633]
[1732091503912,2.1002,237.82,237.67,11.3985633]
[1732091504309,12.2907633,237.83,237.72,2.101]
[1732091504505,10.1907633,237.8,237.67,1.2078]
[1732091505107,2.1004,237.79,237.71,2.1011]
[1732091505418,2.1,237.78,237.71,2.1011]
[1732091506211,2.1,237.78,237.7,2.1012]
[1732091506417,2.1,237.78,237.67,1.2078]
[1732091506715,2.1,237.78,237.67,11.3985633]
[1732091508016,2.1,237.78,237.71,2.1011]
[1732091510110,2.1,237.78,237.72,2.101]
[1732091513020,2.1,237.78,237.67,1.2078]
[1732091513021,2.1,237.78,237.73,2.101]
[1732091514219,2.1,237.78,237.67,1.2078]
[1732091514421,2.1,237.78,237.74,2.1009]
[1732091520520,2.1,237.78,237.73,2.101]
[1732091521122,2.1,237.78,237.74,2.1009]
[1732091523421,2.1,237.78,237.71,2.1011]
[1732091523619,2.1,237.78,237.68,6.51952056]
[1732091523930,2.1,237.78,237.7,6.51952056]
[1732091525225,2.1,237.78,237.73,2.1009]
[1732091525725,2.1,237.78,237.7,6.51952056]
[1732091526316,1.0,237.82,237.74,6.51952056]
[1732091526525,2.1,237.81,237.74,6.51952056]
[1732091527518,2.1,237.81,237.77,2.1006]
[1732091527818,2.1,237.81,237.74,6.51952056]
[1732091528721,1.0,237.82,237.81,2.1003]
[1732091529035,2.1,237.82,237.81,2.1003]
[1732091529720,2.1,237.82,237.76,6.51952056]
[1732091529923,2.1,237.82,237.79,2.1004]
[1732091531219,2.1,237.82,237.75,6.51952056]
[1732091531823,8.61952056,237.82,237.76,2.1007]
[1732091532026,8.61952056,237.82,237.74,6.51952056]
[1732091532227,6.51952056,237.8,237.67,1.2078]
[1732091532429,6.51952056,237.8,237.71,6.51952056]
[1732091532620,6.51952056,237.78,237.67,1.2078]
[1732091532822,2.08,237.77,237.72,6.51952056]
[1732091533024,2.08,237.76,237.75,6.51952056]
[1732091535232,2.08,237.76,237.67,1.2078]
[1732091535533,2.08,237.76,237.75,6.51952056]
[1732091535933,9.00552056,237.84,237.77,2.1006]
[1732091536129,2.08,237.83,237.75,6.51952056]
[1732091536330,10.9428207,237.83,237.75,6.51952056]
[1732091536526,2.08,237.83,237.75,6.51952056]
[1732091537231,2.08,237.83,237.76,2.1007]
[1732091537535,10.94212052,237.83,237.76,2.1007]
[1732091538134,2.08,237.83,237.76,2.1007]
[1732091538436,6.51952056,237.82,237.76,2.1007]
[1732091540339,6.51952056,237.82,237.77,2.1006]
[1732091541538,2.08,237.83,237.67,1.2078]
[1732091541539,2.08,237.83,237.78,2.1005]
[1732091543239,8.59952056,237.83,237.73,6.51952056]
[1732091543447,8.59952056,237.83,237.76,2.1007]
[1732091543743,8.59952056,237.83,237.73,6.51952056]
[1732091543943,8.59952056,237.83,237.7,6.51952056]
[1732091543944,6.51952056,237.79,237.7,6.51952056]
[1732091544151,2.08,237.78,237.7,6.51952056]
[1732091544736,2.08,237.78,237.67,1.2078]
[1732091545141,2.08,237.78,237.69,6.51952056]
[1732091546242,2.08,237.78,237.71,2.1011]
[1732091546545,6.51952056,237.75,237.65,6.51952056]
[1732091546949,6.51952056,237.73,237.66,2.1015]
[1732091547144,2.08,237.72,237.65,6.51952056]
[1732091547647,2.08,237.72,237.65,8.62122056]
[1732091548553,2.08,237.72,237.66,2.1016]
[1732091549846,8.59952056,237.72,237.66,2.1016]
[1732091550550,2.1012,237.71,237.63,2.1019]
[1732091550845,6.51952056,237.7,237.63,2.1019]
[1732091551051,6.51952056,237.7,237.64,2.1017]
[1732091551645,8.59952056,237.72,237.65,8.62112056]
[1732091552449,2.08,237.72,237.65,6.51952056]
[1732091553250,2.08,237.71,237.67,6.51952056]
[1732091554148,2.08,237.71,237.69,6.51952056]
[1732091554356,2.08,237.71,237.7,2.1012]
[1732091554850,2.1004,237.8,237.7,2.1012]
[1732091555050,6.51952056,237.78,237.7,2.1012]
[1732091555651,6.51952056,237.78,237.69,6.51952056]
[1732091555852,8.62002056,237.78,237.71,2.1011]
[1732091557247,6.51952056,237.76,237.71,2.1011]
[1732091558457,6.51952056,237.76,237.72,2.1011]
[1732091560253,2.1005,237.78,237.72,2.1011]
[1732091560458,6.51952056,237.77,237.72,2.1011]
[1732091562359,6.51952056,237.75,237.72,2.1011]
[1732091562559,2.08,237.74,237.66,6.51952056]
[1732091562753,2.08,237.74,237.68,6.51952056]
[1732091562957,2.08,237.73,237.7,6.51952056]
[1732091563155,1.0,237.79,237.75,2.1007]
[1732091563351,2.08,237.78,237.7,6.51952056]
[1732091563760,2.08,237.78,237.75,2.1007]
[1732091565560,2.08,237.78,237.7,6.51952056]
[1732091566049,2.08,237.78,237.72,2.101]
[1732091566252,2.08,237.78,237.72,6.51952056]
[1732091566454,2.08,237.77,237.72,6.51952056]
[1732091566859,2.08,237.78,237.74,6.51952056]
[1732091567562,2.08,237.78,237.77,2.1006]
[1732091568161,2.08,237.78,237.64,2.43872119]
[1732091568162,8.59952056,237.78,237.64,2.43872119]
[1732091568462,6.51952056,237.75,237.67,6.51952056]
[1732091568769,6.51952056,237.77,237.67,6.51952056]
[1732091569660,6.51952056,237.77,237.71,2.1011]
[1732091569861,6.51952056,237.77,237.67,6.51952056]
[1732091571261,6.51952056,237.75,237.7,2.1012]
[1732091571464,6.51952056,237.75,237.65,6.51952056]
[1732091571764,6.51952056,237.73,237.63,0.1517]
[1732091571962,2.08,237.72,237.64,6.51952056]
[1732091572465,2.08,237.72,237.69,2.1013]
[1732091573362,2.08,237.72,237.71,2.1011]
[1732091573666,1.0,237.79,237.7,6.51952056]
[1732091573860,1.0,237.79,237.74,2.1008]
[1732091573861,2.08,237.78,237.74,2.1008]
[1732091575069,2.08,237.78,237.77,2.1006]
[1732091575661,2.08,237.78,237.72,6.51952056]
[1732091576066,2.08,237.78,237.75,2.1007]
[1732091576363,2.08,237.78,237.63,2.08]
[1732091576566,2.08,237.78,237.64,2.99725536]
[1732091576765,6.51952056,237.77,237.63,2.08]
[1732091576966,6.51952056,237.77,237.67,6.51952056]
[1732091578070,6.51952056,237.77,237.72,2.101]
[1732091582779,6.51952056,237.77,237.73,2.101]
[1732091584880,2.08,237.78,237.68,6.51952056]
[1732091585080,6.51952056,237.77,237.68,6.51952056]
[1732091585976,2.08,237.78,237.7,6.51952056]
[1732091588279,2.08,237.78,237.75,2.1008]
[1732091589277,8.59952056,237.78,237.75,2.1008]
[1732091589880,6.51952056,237.76,237.61,3.00177505]
[1732091590178,6.51952056,237.69,237.6,6.51952056]
[1732091590383,2.08,237.68,237.65,2.1016]
[1732091590780,2.08,237.68,237.53,0.1519]
[1732091590986,6.51952056,237.67,237.59,6.51952056]
[1732091591177,6.51952056,237.67,237.53,1.4267]
[1732091591381,6.51952056,237.65,237.59,2.1022]
[1732091591781,6.51952056,237.63,237.46,0.1519]
[1732091591981,2.08,237.62,237.58,2.1023]
[1732091592879,2.08,237.62,237.59,2.1022]
[1732091593279,2.08,237.62,237.46,0.1519]
[1732091593280,2.08,237.62,237.6,8.62152056]
[1732091598282,6.51952056,237.71,237.6,6.51952056]
[1732091598486,1.1869,237.73,237.65,6.51952056]
[1732091598787,2.08,237.72,237.65,6.51952056]
[1732091598987,2.08,237.72,237.69,2.1013]
[1732091599891,2.08,237.72,237.66,2.1015]
[1732091600389,2.08,237.72,237.67,2.1015]
[1732091604696,6.51952056,237.71,237.64,2.1017]
[1732091604891,6.51952056,237.69,237.64,2.1017]
[1732091605287,2.08,237.72,237.65,2.1017]
[1732091605583,6.51952056,237.71,237.65,2.1017]
[1732091607590,6.51952056,237.71,237.66,2.1016]
[1732091608199,6.51952056,237.71,237.67,2.1015]
[1732091608600,2.08,237.7,237.65,6.51952056]
[1732091609689,2.08,237.7,237.63,6.51952056]
[1732091609892,6.51952056,237.69,237.56,2.44396217]
[1732091610195,6.51952056,237.69,237.59,6.51952056]
[1732091610897,6.51952056,237.67,237.62,2.1019]
[1732091611802,6.51952056,237.65,237.56,6.51952056]
[1732091612002,2.08,237.64,237.56,6.51952056]
[1732091613500,2.08,237.64,237.59,2.1022]
[1732091616805,6.51952056,237.63,237.58,2.1023]
[1732091618199,6.51952056,237.63,237.53,6.51952056]
[1732091618602,6.51952056,237.63,237.57,2.1024]
[1732091618904,6.51952056,237.61,237.53,6.51952056]
[1732091619812,6.51952056,237.61,237.54,2.1026]
[1732091620007,6.51952056,237.59,237.45,2.44430057]
[1732091620205,6.51952056,237.57,237.46,5.44605262]
[1732091620409,6.51952056,237.57,237.48,6.51952056]
[1732091621013,6.51952056,237.57,237.39,2.44590222]
[1732091621209,6.51952056,237.57,237.47,8.62272056]
[1732091621411,6.51952056,237.55,237.46,6.51952056]
[1732091621610,2.4996,237.57,237.48,6.51952056]
[1732091621916,6.51952056,237.56,237.48,6.51952056]
[1732091622306,6.51952056,237.56,237.46,6.51952056]
[1732091623613,6.51952056,237.56,237.41,5.4468976]
[1732091623915,6.51952056,237.56,237.5,2.103]
[1732091625713,2.4996,237.57,237.51,2.1029]
[1732091625919,6.51952056,237.56,237.51,2.1029]
[1732091626119,6.51952056,237.56,237.38,1.1764]
[1732091626120,2.08,237.56,237.44,2.99974239]
[1732091626319,2.08,237.56,237.54,2.1026]
[1732091626818,2.08,237.56,237.53,2.1027]
[1732091627811,2.08,237.56,237.49,6.51952056]
[1732091628012,2.08,237.56,237.42,5.43993336]
[1732091628013,2.08,237.56,237.51,6.51952056]
[1732091628213,2.08,237.56,237.53,6.51952056]
[1732091628617,2.08,237.56,237.51,6.51952056]
[1732091629620,2.08,237.56,237.53,6.51952056]
[1732091630321,2.08,237.56,237.55,2.1026]
[1732091631516,2.5759,237.64,237.55,6.51952056]
[1732091631720,2.5759,237.64,237.45,2.08]
[1732091631721,2.08,237.63,237.57,6.51952056]
[1732091632321,2.08,237.63,237.59,8.62162056]
[1732091632523,2.08,237.63,237.59,6.51952056]
[1732091633823,2.08,237.63,237.58,6.51952056]
[1732091635325,2.08,237.63,237.61,2.1019]
[1732091635521,2.08,237.63,237.58,6.51952056]
[1732091636222,2.08,237.63,237.59,2.1022]
[1732091636525,2.08,237.63,237.52,2.44345503]
[1732091636719,6.51952056,237.62,237.49,5.44490274]
[1732091636925,2.08,237.63,237.56,6.51952056]
[1732091637424,2.08,237.63,237.58,2.1023]
[1732091640429,2.08,237.63,237.59,2.1022]
[1732091642531,2.08,237.63,237.62,2.1019]
[1732091647335,2.08,237.63,237.49,3.00180944]
[1732091647536,2.08,237.63,237.47,2.44443601]
[1732091647537,6.51952056,237.61,237.53,6.51952056]
[1732091647836,2.08,237.6,237.56,2.1024]
[1732091648227,2.08,237.6,237.57,6.51952056]
[1732091648432,2.08,237.6,237.59,8.62172056]
[1732091649327,2.08,237.6,237.59,2.1022]
[1732091650729,2.08,237.6,237.57,2.1023]
[1732091651529,2.08,237.6,237.57,6.51952056]
[1732091653035,2.08,237.6,237.49,3.00324512]
[1732091653338,2.08,237.6,237.59,2.1022]
[1732091655135,2.08,237.6,237.57,2.1023]
[1732091655337,2.08,237.6,237.56,6.51952056]
[1732091655534,2.08,237.6,237.54,6.51952056]
[1732091655730,2.08,237.6,237.56,6.51952056]
[1732091656332,2.08,237.6,237.57,2.1024]
[1732091656541,2.08,237.6,237.54,6.51952056]
[1732091657140,2.08,237.6,237.56,2.1024]
[1732091657346,2.08,237.6,237.53,6.51952056]
[1732091658340,2.08,237.6,237.51,2.1029]
[1732091658540,2.08,237.6,237.54,6.51952056]
[1732091659739,2.08,237.6,237.58,2.1023]
[1732091661745,2.08,237.6,237.54,6.51952056]
[1732091662643,2.08,237.6,237.48,1.2119]
[1732091662644,6.51952056,237.59,237.48,6.51952056]
[1732091663446,8.65560672,237.59,237.52,2.1028]
[1732091663642,8.65560672,237.59,237.43,2.4504601]
[1732091663845,8.65560672,237.59,237.49,6.51952056]
[1732091664245,8.65560672,237.59,237.52,2.1028]
[1732091664945,6.51952056,237.57,237.49,2.1031]
[1732091665545,6.51952056,237.55,237.49,2.1031]
[1732091665737,2.08,237.54,237.49,2.1031]
[1732091666348,6.51952056,237.53,237.44,2.45048645]
[1732091666642,6.51952056,237.51,237.43,6.51952056]
[1732091668243,6.51952056,237.51,237.46,2.1033]
[1732091670647,6.51952056,237.51,237.47,2.1033]
[1732091670845,2.08,237.52,237.49,6.51952056]
[1732091671044,2.08,237.52,237.51,2.1029]
[1732091672642,1.2864,237.6,237.51,6.51952056]
[1732091672845,2.08,237.56,237.55,2.1026]
[1732091674552,2.08,237.56,237.55,8.62212056]
[1732091676350,1.1928,237.65,237.55,6.51952056]
[1732091676550,1.1928,237.65,237.45,2.08]
[1732091676551,2.08,237.64,237.59,6.51952056]
[1732091676944,2.08,237.64,237.57,6.51952056]
[1732091677250,2.08,237.64,237.49,3.00122997]
[1732091677452,6.51952056,237.63,237.54,6.51952056]
[1732091677652,6.51952056,237.63,237.58,2.1022]
[1732091678249,2.08,237.67,237.63,2.1018]
[1732091678445,2.08,237.67,237.59,6.51952056]
[1732091678644,10.74380682,237.67,237.51,2.08]
[1732091678844,8.59952056,237.67,237.58,6.51952056]
[1732091679353,10.7301342,237.67,237.58,6.51952056]
[1732091679551,8.59952056,237.67,237.51,2.08]
[1732091679753,8.59952056,237.67,237.59,2.1021]
[1732091679951,6.51952056,237.65,237.59,2.1021]
[1732091680147,6.51952056,237.63,237.53,6.51952056]
[1732091680348,2.08,237.62,237.55,2.1025]
[1732091680853,3.3218,237.62,237.55,2.1025]
[1732091681052,3.3218,237.62,237.56,2.1025]
[1732091682155,3.3218,237.62,237.55,6.51952056]
[1732091683254,3.3218,237.62,237.57,2.1024]
[1732091683655,3.3218,237.62,237.45,3.00408496]
[1732091683850,6.51952056,237.61,237.55,2.1025]
[1732091684458,6.51952056,237.61,237.56,2.1025]
[1732091684755,6.51952056,237.61,237.52,6.51952056]
[1732091684954,6.51952056,237.59,237.44,1.2065]
[1732091685256,6.51952056,237.59,237.49,6.51952056]
[1732091685657,6.51952056,237.59,237.51,6.51952056]
[1732091686151,6.51952056,237.61,237.53,2.1027]
[1732091686953,2.08,237.62,237.56,2.1025]
[1732091687356,8.59952056,237.62,237.56,2.1025]
[1732091687660,2.08,237.62,237.53,6.51952056]
[1732091687858,8.59952056,237.62,237.57,2.1024]
[1732091688460,8.59952056,237.62,237.58,2.1023]
[1732091688959,8.59952056,237.62,237.53,6.51952056]
[1732091689866,8.59952056,237.62,237.58,2.1023]
[1732091690560,2.08,237.62,237.55,6.51952056]
[1732091691161,2.08,237.62,237.59,2.1022]